[Event "XIX Najdorf Memorial 2019"]
[Site "Warsaw"]
[Date "2019.07.13"]
[Round "8.14"]
[White "Krstulovic, Alex"]
[Black "Jarmula, Lukasz"]
[Result "1/2-1/2"]
[ECO "D38"]
[WhiteElo "2360"]
[BlackElo "2480"]
[Annotator "ChessBase"]
[PlyCount "93"]
[EventDate "2019.07.06"]
[EventType "swiss"]
[EventCountry "POL"]
[SourceTitle "playchess.com"]
[Source "ChessBase"]
[SourceQuality "1"]
[TimeControl "40/5400+30:1800+30"]

1. d4 {[%emt 0:00:00]} Nf6 {[%emt 0:00:00]} 2. c4 {[%emt 0:00:00]} e6 {[%emt 0:00:00]} 3. Nf3 {[%emt 0:00:00]} d5 {[%emt 0:00:00]} 4. Nc3 {[%emt 0:00:00]} Bb4 {[%emt 0:00:00]} 5. Bg5 {[%emt 0:00:05]} h6 {[%emt 0:00:00]} 6. Bxf6 {[%emt 0:00:24]} Qxf6 {[%emt 0:00:00]} 7. e3 {[%emt 0:04:54]} O-O {[%emt 0:00:00]} 8. Rc1 {[%emt 0:00:06]} dxc4 {[%emt 0:00:10]} 9. Bxc4 {[%emt 0:00:07]} c5 {[%emt 0:00:03]} 10. O-O {[%emt 0:00:09]} cxd4 {[%emt 0:00:11]} 11. Ne4 {[%emt 0:00:07]} Qe7 {[%emt 0:00:03]} 12. exd4 {[%emt 0:00:31]} Nc6 {[%emt 0:05:57]} 13. Qe2 {[%emt 0:04:55]} Ba5 {[%emt 0:05:56]} 14. Rfd1 {[%emt 0:04:27]} Bb6 {[%emt 0:00:56]} 15. Ng3 {[%emt 0:06:42]} Bd7 {[%emt 0:00:48]} 16. Qe4 {[%emt 0:02:48]} Rad8 {[%emt 0:00:59]} 17. Re1 {[%emt 0:23:47]} Qf6 {[%emt 0:18:05]} 18. Bd3 {[%emt 0:11:28]} g6 {[%emt 0:00:37]} 19. Nh5 {[%emt 0:03:28]} Qf5 {[%emt 0:11:41]} 20. Qxf5 {[%emt 0:00:08]} exf5 {[%emt 0:00:13]} 21. Nf6+ {[%emt 0:01:48]} Kg7 {[%emt 0:00:11]} 22. Nxd7 {[%emt 0:00:13]} Rxd7 {[%emt 0:00:05]} 23. Bb5 {[%emt 0:00:14]} Bxd4 {[%emt 0:01:39]} 24. Nxd4 {[%emt 0:00:24]} Rxd4 {[%emt 0:00:13]} 25. Bxc6 {[%emt 0:00:34]} bxc6 {[%emt 0:00:05]} 26. Rxc6 {[%emt 0:00:06]} Rd2 {[%emt 0:03:36]} 27. Ra6 {[%emt 0:01:47]} Rxb2 {[%emt 0:01:51]} 28. Rxa7 {[%emt 0:00:52]} Re8 {[%emt 0:00:39]} 29. Rf1 {[%emt 0:17:22]} Ree2 {[%emt 0:00:25]} 30. a3 {[%emt 0:00:01]} Ra2 {[%emt 0:00:16]} 31. h4 {[%emt 0:05:04]} Red2 {[%emt 0:00:48]} 32. g3 {[%emt 0:06:03]} Rd3 {[%emt 0:02:08]} 33. Kg2 {[%emt 0:00:56]} Rdxa3 {[%emt 0:00:17]} 34. Rxa3 {[%emt 0:00:47]} Rxa3 {[%emt 0:00:05]} 35. Rb1 {[%emt 0:00:11]} Ra5 {[%emt 0:03:21]} 36. Rb6 {[%emt 0:00:18]} g5 {[%emt 0:00:25]} 37. hxg5 {[%emt 0:01:42]} hxg5 {[%emt 0:00:05]} 38. Rc6 {[%emt 0:01:15]} Ra4 {[%emt 0:01:11]} 39. Rc5 {[%emt 0:00:32]} Kg6 {[%emt 0:00:07]} 40. Rc6+ {[%emt 0:00:00]} f6 {[%emt 0:00:00]} 41. Rc5 {[%emt 0:01:15]} g4 {[%emt 0:00:44]} 42. Rb5 {[%emt 0:00:50]} Kg5 {[%emt 0:01:11]} 43. Rc5 {[%emt 0:00:30]} Re4 {[%emt 0:00:11]} 44. Ra5 {[%emt 0:00:21]} Re5 {[%emt 0:00:11]} 45. Ra4 {[%emt 0:00:01]} Re4 {[%emt 0:00:11]} 46. Ra5 {[%emt 0:00:07]} Kg6 {[%emt 0:00:13]} 47. Rb5 {[%emt 0:00:19]} 1/2-1/2

[Event "XIX Najdorf Memorial 2019"]
[Site "Warsaw"]
[Date "2019.07.13"]
[Round "8.14"]
[White "Sowul, Bartosz"]
[Black "Zylka, Stanislaw"]
[Result "0-1"]
[ECO "A48"]
[WhiteElo "2210"]
[BlackElo "2308"]
[Annotator "NA"]
[PlyCount "76"]
[EventDate "2019.07.06"]
[EventType "swiss"]
[EventCountry "POL"]
[SourceTitle "playchess.com"]
[Source "ChessBase"]
[SourceQuality "1"]
[TimeControl "40/5400+30:1800+30"]

1. Nf3 {[%emt 0:01:54]} g6 {[%emt 0:00:00]} 2. d4 {[%emt 0:00:32]} Nf6 {[%emt 0:00:05]} 3. b3 {[%emt 0:01:07]} Bg7 {[%emt 0:00:46]} 4. Bb2 {[%emt 0:00:08]} d5 {[%emt 0:00:37]} 5. e3 {[%emt 0:02:21]} O-O {[%emt 0:01:03]} 6. Bd3 {[%emt 0:02:04]} Nc6 {[%emt 0:00:49]} 7. a3 {[%emt 0:01:01]} Bg4 {[%emt 0:07:57]} 8. Nbd2 {[%emt 0:02:24]} e5 {[%emt 0:02:08]} 9. dxe5 {[%emt 0:13:26]} Nd7 {[%emt 0:00:11]} 10. Be2 {[%emt 0:01:12]} Ncxe5 {[%emt 0:07:23]} 11. Nxe5 {[%emt 0:05:21]} Bxe2 {[%emt 0:00:16]} 12. Qxe2 {[%emt 0:00:22]} Nxe5 {[%emt 0:00:17]} 13. Rb1 {[%emt 0:00:33]} Re8 {[%emt 0:01:55]} 14. O-O {[%emt 0:00:35]} Qe7 {[%emt 0:12:17]} 15. Rfd1 {[%emt 0:05:02]} Rad8 {[%emt 0:01:19]} 16. b4 {[%emt 0:03:27]} Qe6 {[%emt 0:03:34]} 17. h3 {[%emt 0:08:09]} c6 {[%emt 0:03:55]} 18. Bd4 {[%emt 0:05:18]} b6 {[%emt 0:00:54]} 19. a4 {[%emt 0:01:12]} Bf8 {[%emt 0:04:43]} 20. Bxe5 {[%emt 0:07:51]} Qxe5 {[%emt 0:00:08]} 21. Nf3 {[%emt 0:00:08]} Qc3 {[%emt 0:06:13]} 22. Rb3 {[%emt 0:14:03]} Qc4 {[%emt 0:01:10]} 23. Kf1 {[%emt 0:01:13]} Qe4 {[%emt 0:14:45]} 24. Rd4 {[%emt 0:06:18]} Qe6 {[%emt 0:00:11]} 25. Rd1 {[%emt 0:01:11]} h6 {[%emt 0:02:04]} 26. Kg1 {[%emt 0:02:58]} Qf6 {[%emt 0:01:32]} 27. Qa6 {[%emt 0:01:04]} Rd7 {[%emt 0:01:47]} 28. Nd4 {[%emt 0:07:56]} Kg7 {[%emt 0:02:57]} 29. a5 {[%emt 0:01:42]} Rb8 {[%emt 0:00:55]} 30. b5 {[%emt 0:00:57]} c5 {[%emt 0:05:40]} 31. Nc6 {[%emt 0:02:05]} Rbb7 {[%emt 0:00:10]} 32. axb6 {[%emt 0:00:30]} Rxb6 {[%emt 0:01:20]} 33. Qc8 {[%emt 0:01:46]} Qe6 {[%emt 0:00:22]} 34. e4 {[%emt 0:00:29]} d4 {[%emt 0:00:38]} 35. Ra3 {[%emt 0:00:31]} Rxb5 {[%emt 0:01:39]} 36. Nxa7 {[%emt 0:00:32]} Rbb7 {[%emt 0:00:35]} 37. Nb5 {[%emt 0:00:32]} Rxb5 {[%emt 0:01:27]} 38. Ra8 {[%emt 0:00:20]} Qe7 {[%emt 0:00:12]} 0-1

[Event "XIX Najdorf Memorial 2019"]
[Site "Warsaw"]
[Date "2019.07.13"]
[Round "8.15"]
[White "Socko, Monika"]
[Black "Kowalski, Igor"]
[Result "1/2-1/2"]
[ECO "E92"]
[WhiteElo "2443"]
[BlackElo "2320"]
[Annotator "NA"]
[PlyCount "117"]
[EventDate "2019.07.06"]
[EventType "swiss"]
[EventCountry "POL"]
[SourceTitle "playchess.com"]
[Source "ChessBase"]
[SourceQuality "1"]
[TimeControl "40/5400+30:1800+30"]

1. d4 {[%emt 0:00:00]} Nf6 {[%emt 0:00:00]} 2. c4 {[%emt 0:00:00]} g6 {[%emt 0:00:00]} 3. Nc3 {[%emt 0:00:00]} Bg7 {[%emt 0:00:00]} 4. e4 {[%emt 0:00:02]} d6 {[%emt 0:00:00]} 5. Nf3 {[%emt 0:00:12]} O-O {[%emt 0:00:00]} 6. Be2 {[%emt 0:00:07]} e5 {[%emt 0:00:00]} 7. Be3 {[%emt 0:00:05]} exd4 {[%emt 0:01:27]} 8. Nxd4 {[%emt 0:00:07]} Re8 {[%emt 0:00:03]} 9. f3 {[%emt 0:00:24]} c6 {[%emt 0:00:23]} 10. Bf2 {[%emt 0:00:07]} d5 {[%emt 0:02:26]} 11. exd5 {[%emt 0:00:05]} cxd5 {[%emt 0:00:04]} 12. O-O {[%emt 0:00:07]} Nc6 {[%emt 0:13:49]} 13. c5 {[%emt 0:00:06]} a6 {[%emt 0:09:41]} 14. Qd2 {[%emt 0:03:52]} Nh5 {[%emt 0:07:18]} 15. Rad1 {[%emt 0:03:48]} Be6 {[%emt 0:04:43]} 16. Rfe1 {[%emt 0:05:51]} Qc7 {[%emt 0:02:55]} 17. Bf1 {[%emt 0:09:29]} Be5 {[%emt 0:10:46]} 18. g3 {[%emt 0:05:46]} Ng7 {[%emt 0:01:13]} 19. Nxe6 {[%emt 0:12:07]} fxe6 {[%emt 0:00:06]} 20. Ne2 {[%emt 0:06:10]} Qf7 {[%emt 0:12:34]} 21. f4 {[%emt 0:05:35]} Bc7 {[%emt 0:00:14]} 22. b4 {[%emt 0:00:36]} Nh5 {[%emt 0:00:08]} 23. Nd4 {[%emt 0:05:22]} e5 {[%emt 0:04:08]} 24. fxe5 {[%emt 0:01:38]} Bxe5 {[%emt 0:00:11]} 25. Bg2 {[%emt 0:02:56]} Nf6 {[%emt 0:00:54]} 26. Nf3 {[%emt 0:00:48]} Ne4 {[%emt 0:02:51]} 27. Nxe5 {[%emt 0:14:24]} Rxe5 {[%emt 0:01:51]} 28. Bxe4 {[%emt 0:03:08]} dxe4 {[%emt 0:00:37]} 29. a3 {[%emt 0:00:14]} Rf8 {[%emt 0:14:29]} 30. Be3 {[%emt 0:03:02]} Rd8 {[%emt 0:02:06]} 31. Qf2 {[%emt 0:04:08]} Red5 {[%emt 0:01:28]} 32. Qxf7+ {[%emt 0:03:40]} Kxf7 {[%emt 0:00:05]} 33. Rf1+ {[%emt 0:00:01]} Ke6 {[%emt 0:00:11]} 34. Rde1 {[%emt 0:00:19]} Rf5 {[%emt 0:01:41]} 35. Bf2 {[%emt 0:01:55]} Ke5 {[%emt 0:05:44]} 36. g4 {[%emt 0:00:33]} Rf3 {[%emt 0:00:04]} 37. Bg3+ {[%emt 0:00:26]} Kd4 {[%emt 0:01:04]} 38. Rxf3 {[%emt 0:04:20]} exf3 {[%emt 0:00:02]} 39. Kf2 {[%emt 0:00:10]} Kc4 {[%emt 0:00:13]} 40. Bd6 {[%emt 0:00:00]} Nd4 {[%emt 0:00:00]} 41. Re7 {[%emt 0:03:16]} Nb5 {[%emt 0:10:09]} 42. Rxh7 {[%emt 0:10:51]} Nxd6 {[%emt 0:00:41]} 43. cxd6 {[%emt 0:00:05]} Rxd6 {[%emt 0:00:10]} 44. Rxb7 {[%emt 0:00:45]} Rd2+ {[%emt 0:02:23]} 45. Kxf3 {[%emt 0:00:49]} Rxh2 {[%emt 0:00:05]} 46. Kf4 {[%emt 0:00:21]} Ra2 {[%emt 0:03:08]} 47. Kg5 {[%emt 0:00:24]} Rxa3 {[%emt 0:02:23]} 48. Kxg6 {[%emt 0:00:22]} Rb3 {[%emt 0:00:35]} 49. g5 {[%emt 0:00:40]} a5 {[%emt 0:00:03]} 50. b5 {[%emt 0:05:13]} Rxb5 {[%emt 0:00:18]} 51. Ra7 {[%emt 0:00:03]} Kb3 {[%emt 0:00:22]} 52. Kf6 {[%emt 0:00:04]} a4 {[%emt 0:00:05]} 53. g6 {[%emt 0:00:05]} Rb6+ {[%emt 0:00:29]} 54. Kf5 {[%emt 0:00:01]} Rxg6 {[%emt 0:00:52]} 55. Kxg6 {[%emt 0:00:28]} a3 {[%emt 0:00:03]} 56. Kf5 {[%emt 0:00:06]} a2 {[%emt 0:00:03]} 57. Ke4 {[%emt 0:00:05]} Kb2 {[%emt 0:00:04]} 58. Rb7+ {[%emt 0:00:18]} Kc2 {[%emt 0:00:03]} 59. Rb6 1/2-1/2

[Event "XIX Najdorf Memorial 2019"]
[Site "Warsaw"]
[Date "2019.07.13"]
[Round "8.15"]
[White "Kubicka, Anna"]
[Black "Punin, Andrii"]
[Result "1/2-1/2"]
[ECO "D35"]
[WhiteElo "2202"]
[BlackElo "2305"]
[Annotator "NA"]
[PlyCount "78"]
[EventDate "2019.07.06"]
[EventType "swiss"]
[EventCountry "POL"]
[SourceTitle "playchess.com"]
[Source "ChessBase"]
[SourceQuality "1"]
[TimeControl "40/5400+30:1800+30"]

1. d4 d5 2. c4 e6 3. Nc3 Nf6 4. cxd5 exd5 5. Bg5 c6 6. e3 Be7 7. Bd3 Nbd7 8. Qc2 h6 9. Bh4 Nh5 10. Bxe7 Qxe7 11. Nf3 Nf4 12. O-O Nxd3 13. Qxd3 O-O 14. Rac1 Nf6 15. a3 Ne4 16. Ne5 Nd6 17. b4 Bf5 18. Qe2 f6 19. Nd3 Bxd3 20. Qxd3 b5 21. Rfe1 f5 22. Ne2 Qd7 23. Nf4 Nc4 24. Qc3 Qd6 25. Nd3 a5 26. Ne5 axb4 27. axb4 Ra6 28. g3 Rfa8 29. Ra1 Rxa1 30. Rxa1 Rxa1+ 31. Qxa1 Nxe5 32. dxe5 Qxb4 33. e6 Kf8 34. Qa8+ Ke7 35. Qxc6 Qb1+ 36. Kg2 Qe4+ 37. Kg1 Qb1+ 38. Kg2 Qe4+ 39. Kg1 Qb1+ 1/2-1/2

[Event "XIX Najdorf Memorial 2019"]
[Site "Warsaw"]
[Date "2019.07.13"]
[Round "8.16"]
[White "Miroshnichenko, Pavel"]
[Black "Sliwicki, Damian"]
[Result "0-1"]
[ECO "D38"]
[WhiteElo "2300"]
[BlackElo "2232"]
[Annotator "NA"]
[PlyCount "98"]
[EventDate "2019.07.06"]
[EventType "swiss"]
[EventCountry "POL"]
[SourceTitle "playchess.com"]
[Source "ChessBase"]
[SourceQuality "1"]
[TimeControl "40/5400+30:1800+30"]

1. d4 {[%emt 0:01:09]} Nf6 {[%emt 0:00:00]} 2. c4 {[%emt 0:00:07]} e6 {[%emt 0:00:00]} 3. Nf3 {[%emt 0:00:20]} d5 {[%emt 0:00:00]} 4. Nc3 {[%emt 0:02:37]} Bb4 {[%emt 0:00:02]} 5. cxd5 {[%emt 0:00:50]} exd5 {[%emt 0:00:05]} 6. Qa4+ {[%emt 0:00:32]} Nc6 {[%emt 0:00:06]} 7. Bg5 {[%emt 0:02:28]} h6 {[%emt 0:02:55]} 8. Bxf6 {[%emt 0:00:06]} Qxf6 {[%emt 0:00:06]} 9. a3 {[%emt 0:00:32]} Bxc3+ {[%emt 0:00:56]} 10. bxc3 {[%emt 0:00:05]} O-O {[%emt 0:00:34]} 11. e3 {[%emt 0:00:12]} Qg6 {[%emt 0:03:28]} 12. Be2 {[%emt 0:15:17]} Qxg2 {[%emt 0:04:05]} 13. Rg1 {[%emt 0:00:23]} Qh3 {[%emt 0:00:04]} 14. Kd2 {[%emt 0:00:33]} Bd7 {[%emt 0:11:46]} 15. Rg3 {[%emt 0:01:35]} Qf5 {[%emt 0:12:45]} 16. Rag1 {[%emt 0:02:42]} Ne5 {[%emt 0:06:07]} 17. dxe5 {[%emt 0:27:18]} Bxa4 {[%emt 0:01:01]} 18. Rxg7+ {[%emt 0:00:06]} Kh8 {[%emt 0:00:03]} 19. Bd3 {[%emt 0:00:07]} Bd7 {[%emt 0:06:19]} 20. Bxf5 {[%emt 0:04:08]} Bxf5 {[%emt 0:00:06]} 21. Nh4 {[%emt 0:01:10]} Bh7 {[%emt 0:07:18]} 22. f4 {[%emt 0:02:04]} Be4 {[%emt 0:04:10]} 23. R1g3 {[%emt 0:18:20]} Rae8 {[%emt 0:03:59]} 24. R7g4 {[%emt 0:00:44]} Rg8 {[%emt 0:15:19]} 25. h3 {[%emt 0:04:32]} b5 {[%emt 0:01:15]} 26. Nf3 {[%emt 0:03:39]} c5 {[%emt 0:00:08]} 27. Ke2 {[%emt 0:03:36]} a5 {[%emt 0:03:07]} 28. Nd2 {[%emt 0:01:40]} Bc2 {[%emt 0:01:44]} 29. e4 {[%emt 0:00:06]} dxe4 {[%emt 0:07:08]} 30. Ke3 {[%emt 0:00:03]} Rxg4 {[%emt 0:02:01]} 31. hxg4 {[%emt 0:03:51]} b4 {[%emt 0:00:42]} 32. cxb4 {[%emt 0:00:31]} cxb4 {[%emt 0:00:13]} 33. axb4 {[%emt 0:00:43]} axb4 {[%emt 0:00:15]} 34. Nc4 {[%emt 0:01:38]} b3 {[%emt 0:01:49]} 35. Kd2 {[%emt 0:01:44]} Rc8 {[%emt 0:00:54]} 36. Rc3 {[%emt 0:00:17]} Rxc4 {[%emt 0:03:05]} 37. Rxc4 {[%emt 0:00:16]} e3+ {[%emt 0:00:03]} 38. Kxe3 {[%emt 0:02:18]} b2 {[%emt 0:00:03]} 39. Rb4 {[%emt 0:00:38]} b1=Q {[%emt 0:00:06]} 40. Rxb1 {[%emt 0:00:00]} Bxb1 {[%emt 0:00:00]} 41. f5 {[%emt 0:00:19]} Kg7 {[%emt 0:01:23]} 42. Kf4 {[%emt 0:00:24]} Bc2 {[%emt 0:04:20]} 43. Kg3 {[%emt 0:00:18]} h5 {[%emt 0:03:53]} 44. Kh4 {[%emt 0:03:58]} hxg4 {[%emt 0:00:31]} 45. Kxg4 {[%emt 0:00:12]} Kh6 {[%emt 0:00:22]} 46. Kf4 {[%emt 0:00:29]} Kh5 {[%emt 0:00:11]} 47. e6 {[%emt 0:01:57]} f6 {[%emt 0:00:06]} 48. e7 {[%emt 0:00:28]} Ba4 {[%emt 0:00:04]} 49. Ke4 {[%emt 0:00:21]} Kg5 {[%emt 0:00:15]} 0-1

[Event "XIX Najdorf Memorial 2019"]
[Site "Warsaw"]
[Date "2019.07.13"]
[Round "8.17"]
[White "Lukasiewicz, Krzysztof"]
[Black "Bednarek, Sylwester"]
[Result "0-1"]
[ECO "C15"]
[WhiteElo "2172"]
[BlackElo "2291"]
[Annotator "NA"]
[PlyCount "94"]
[EventDate "2019.07.06"]
[EventType "swiss"]
[EventCountry "POL"]
[SourceTitle "playchess.com"]
[Source "ChessBase"]
[SourceQuality "1"]
[TimeControl "40/5400+30:1800+30"]

1. e4 {[%emt 0:00:00]} e6 {[%emt 0:00:00]} 2. d4 {[%emt 0:00:00]} d5 {[%emt 0:00:00]} 3. Nc3 {[%emt 0:00:00]} Bb4 {[%emt 0:00:22]} 4. Nge2 {[%emt 0:00:00]} Nf6 {[%emt 0:02:37]} 5. e5 {[%emt 0:01:00]} Ne4 {[%emt 0:00:03]} 6. a3 {[%emt 0:00:06]} Nxc3 {[%emt 0:00:07]} 7. Nxc3 {[%emt 0:00:33]} Bf8 {[%emt 0:01:02]} 8. Be3 {[%emt 0:03:56]} b6 {[%emt 0:00:22]} 9. f4 {[%emt 0:03:19]} Qd7 {[%emt 0:01:12]} 10. Qf3 {[%emt 0:04:18]} g6 {[%emt 0:00:25]} 11. O-O-O {[%emt 0:01:46]} h5 {[%emt 0:00:14]} 12. g3 {[%emt 0:01:19]} Ba6 {[%emt 0:00:03]} 13. h3 {[%emt 0:09:24]} Bxf1 {[%emt 0:00:27]} 14. Rhxf1 {[%emt 0:00:03]} Nc6 {[%emt 0:00:40]} 15. g4 {[%emt 0:00:16]} O-O-O {[%emt 0:06:04]} 16. f5 {[%emt 0:04:15]} hxg4 {[%emt 0:00:08]} 17. fxe6 {[%emt 0:06:30]} gxf3 {[%emt 0:00:21]} 18. exd7+ {[%emt 0:00:05]} Rxd7 {[%emt 0:00:07]} 19. Rxf3 {[%emt 0:00:03]} Nd8 {[%emt 0:00:08]} 20. Rdf1 {[%emt 0:02:55]} Rh7 {[%emt 0:06:02]} 21. Ne2 {[%emt 0:07:27]} Ne6 {[%emt 0:00:26]} 22. Kd2 {[%emt 0:05:18]} Be7 {[%emt 0:01:24]} 23. c3 {[%emt 0:03:36]} Bh4 {[%emt 0:04:37]} 24. Kd3 {[%emt 0:03:29]} Kd8 {[%emt 0:00:42]} 25. b3 {[%emt 0:03:49]} Ke8 {[%emt 0:01:54]} 26. c4 {[%emt 0:11:51]} c6 {[%emt 0:07:06]} 27. cxd5 {[%emt 0:01:42]} Rxd5 {[%emt 0:00:53]} 28. Ke4 {[%emt 0:01:59]} Be7 {[%emt 0:06:16]} 29. b4 {[%emt 0:04:06]} a5 {[%emt 0:06:21]} 30. Rc1 {[%emt 0:01:30]} Rh4+ {[%emt 0:00:21]} 31. Kd3 {[%emt 0:00:26]} axb4 {[%emt 0:05:04]} 32. axb4 {[%emt 0:00:03]} c5 {[%emt 0:01:11]} 33. bxc5 {[%emt 0:02:20]} bxc5 {[%emt 0:00:56]} 34. Bf2 {[%emt 0:02:42]} Rh5 {[%emt 0:03:47]} 35. Kc4 {[%emt 0:01:10]} Rd8 {[%emt 0:06:29]} 36. d5 {[%emt 0:00:16]} Ng5 {[%emt 0:02:07]} 37. Rb3 {[%emt 0:04:53]} Ne4 {[%emt 0:00:06]} 38. d6 {[%emt 0:00:46]} Nd2+ {[%emt 0:00:54]} 39. Kc3 {[%emt 0:00:24]} Nxb3 {[%emt 0:09:52]} 40. Kxb3 {[%emt 0:00:00]} Rxe5 {[%emt 0:00:00]} 41. dxe7 {[%emt 0:01:44]} Rb8+ {[%emt 0:01:26]} 42. Kc4 {[%emt 0:00:12]} Rxe2 {[%emt 0:00:03]} 43. Bxc5 {[%emt 0:00:05]} Rc8 {[%emt 0:00:44]} 44. Kd4 {[%emt 0:01:28]} Rxe7 {[%emt 0:00:17]} 45. Rf1 {[%emt 0:00:38]} Rd7+ {[%emt 0:00:25]} 46. Kc4 {[%emt 0:00:04]} f5 {[%emt 0:00:12]} 47. Re1+ {[%emt 0:00:12]} Kf7 {[%emt 0:00:02]} 0-1

[Event "XIX Najdorf Memorial 2019"]
[Site "Warsaw"]
[Date "2019.07.13"]
[Round "8.18"]
[White "Dzida, Kamil"]
[Black "Godzwon, Iwo"]
[Result "1/2-1/2"]
[ECO "B38"]
[WhiteElo "1987"]
[BlackElo "2285"]
[Annotator "NA"]
[PlyCount "129"]
[EventDate "2019.07.06"]
[EventType "swiss"]
[EventCountry "POL"]
[SourceTitle "playchess.com"]
[Source "ChessBase"]
[SourceQuality "1"]
[TimeControl "40/5400+30:1800+30"]

1. e4 c5 2. Nf3 g6 3. d4 cxd4 4. Nxd4 Bg7 5. c4 Nc6 6. Be3 Nf6 7. Nc3 O-O 8. Be2 d6 9. O-O Bd7 10. Nc2 a5 11. Rc1 Nb4 12. Nd4 a4 13. f3 Qa5 14. Qd2 Rfc8 15. Rfd1 Be8 16. Nd5 Nbxd5 17. Qxa5 Rxa5 18. cxd5 Rac5 19. Nb5 Rxc1 20. Rxc1 Rxc1+ 21. Bxc1 Bd7 22. Kf2 Ne8 23. b3 axb3 24. axb3 f5 25. Ba3 fxe4 26. fxe4 Nf6 27. e5 dxe5 28. Bxe7 Nxd5 29. Bc4 Be6 30. Ba3 e4 31. g3 b6 32. Nd6 Bd4+ 33. Ke1 e3 34. Nb5 Be5 35. Ke2 Kg7 36. Nd6 Bg4+ 37. Ke1 Nf6 38. Nb5 Bf3 39. Be2 Bd5 40. Bc1 Bxb3 41. Bxe3 Nd5 42. Bf2 Nc3 43. Nxc3 Bxc3+ 44. Kf1 Ba5 45. Bb5 Kf6 46. Ke2 Kf5 47. h4 Ke4 48. Bc6+ Bd5 49. Bb5 Ke5 50. Be3 Kd6 51. g4 Bc6 52. Bc4 Bd7 53. Kf3 b5 54. Bg8 h5 55. gxh5 gxh5 56. Bf7 Bg4+ 57. Ke4 Be1 58. Bg5 b4 59. Kd4 Bc3+ 60. Kd3 Bd1 61. Bd2 Bxd2 62. Kxd2 Bg4 63. Kc2 Ke5 64. Bxh5 Bxh5 65. Kb3 1/2-1/2

[Event "XIX Najdorf Memorial 2019"]
[Site "Warsaw"]
[Date "2019.07.13"]
[Round "8.19"]
[White "Pacan-Milej, Kosma"]
[Black "Kopylov, Daniel"]
[Result "1-0"]
[ECO "D85"]
[WhiteElo "2272"]
[BlackElo "2209"]
[Annotator "NA"]
[PlyCount "77"]
[EventDate "2019.07.06"]
[EventType "swiss"]
[EventCountry "POL"]
[SourceTitle "playchess.com"]
[Source "ChessBase"]
[SourceQuality "1"]
[TimeControl "40/5400+30:1800+30"]

1. d4 Nf6 2. c4 g6 3. Nc3 d5 4. cxd5 Nxd5 5. Bd2 Bg7 6. e4 Nb6 7. Be3 Nc6 8. d5 Ne5 9. f4 Ng4 10. Bb5+ Kf8 11. Bc5 Nd7 12. Bd4 Ngf6 13. Nf3 h6 14. O-O Kg8 15. Qb3 Ne8 16. e5 Nb6 17. Rad1 Bf5 18. Bc5 Nd7 19. Be3 a6 20. Be2 Qc8 21. h3 Nf8 22. Nd4 Bd7 23. e6 fxe6 24. dxe6 Bc6 25. f5 g5 26. Nxc6 bxc6 27. Qc4 Rb8 28. Qxc6 Rxb2 29. Nd5 Bf6 30. Bh5 Rb8 31. Bc5 Rh7 32. Rfe1 Rg7 33. Bf7+ Rxf7 34. exf7+ Kxf7 35. Nxf6 exf6 36. Re7+ Kg8 37. Qd5+ Kh8 38. Qf7 Qxf5 39. Qxf8# 1-0

[Event "XIX Najdorf Memorial 2019"]
[Site "Warsaw"]
[Date "2019.07.13"]
[Round "8.20"]
[White "Malynovskyi, Rostyslav"]
[Black "Chomczyk, Marek"]
[Result "0-1"]
[ECO "D38"]
[WhiteElo "2156"]
[BlackElo "2270"]
[Annotator "NA"]
[PlyCount "190"]
[EventDate "2019.07.06"]
[EventType "swiss"]
[EventCountry "POL"]
[SourceTitle "playchess.com"]
[Source "ChessBase"]
[SourceQuality "1"]
[TimeControl "40/5400+30:1800+30"]

1. d4 Nf6 2. c4 e6 3. Nf3 d5 4. Nc3 Bb4 5. Bg5 h6 6. Bxf6 Qxf6 7. Qa4+ Nc6 8. e3 O-O 9. Be2 dxc4 10. O-O Bxc3 11. bxc3 e5 12. Qxc4 Re8 13. Rfd1 exd4 14. cxd4 Re4 15. Nd2 Re7 16. Bf3 Rb8 17. Ne4 Qg6 18. Nc5 Bg4 19. Bxg4 Qxg4 20. h3 Qg6 21. Rdc1 Nd8 22. Qa4 b6 23. Na6 Rc8 24. Nb4 Qe4 25. Nc6 Re6 26. Nxd8 Rg6 27. g3 Rxd8 28. Qc2 Qf3 29. Qxc7 Rdd6 30. Qc2 Rdf6 31. Rf1 h5 32. h4 Rg4 33. Kh2 Rfg6 34. Rg1 Rc6 35. Qd2 g5 36. hxg5 h4 37. Raf1 Qf5 38. e4 Qxe4 39. Rc1 Rxc1 40. Rxc1 hxg3+ 41. fxg3 Qxd4 42. Qc2 Rxg5 43. Rd1 Qe5 44. Qd3 Rg4 45. Rd2 Rh4+ 46. Kg2 Qe4+ 47. Qxe4 Rxe4 48. Kf3 Ra4 49. g4 Kg7 50. Kg3 Kg6 51. Rd6+ f6 52. Rd2 b5 53. Kf3 a5 54. Kg3 b4 55. Kf3 Ra3+ 56. Kf4 Rc3 57. Rd5 Ra3 58. Rd2 Ra4 59. Kf3 Kf7 60. Re2 Ra3+ 61. Kf4 Rc3 62. Kf5 Rc5+ 63. Kf4 a4 64. Rb2 Rc4+ 65. Kf5 Rc5+ 66. Ke4 Rg5 67. Kf4 Rb5 68. Ke4 b3 69. axb3 axb3 70. Kd3 Kg6 71. Ke3 Kg5 72. Kf3 Rb4 73. Kg3 Rxg4+ 74. Kf3 Rb4 75. Ke3 f5 76. Kf3 f4 77. Kf2 Kg4 78. Kg2 f3+ 79. Kf2 Kf4 80. Ke1 Ke3 81. Kf1 Kd3 82. Ke1 Kc3 83. Rf2 b2 84. Rxf3+ Kc2 85. Rf2+ Kc1 86. Ke2 b1=Q 87. Rf1+ Kc2 88. Rxb1 Rxb1 89. Ke3 Rb4 90. Ke2 Re4+ 91. Kf3 Kd3 92. Kf2 Rf4+ 93. Kg3 Ke3 94. Kg2 Rg4+ 95. Kf1 Rg8 0-1

[Event "XIX Najdorf Memorial 2019"]
[Site "Warsaw"]
[Date "2019.07.13"]
[Round "8.21"]
[White "Siekanski, Janusz"]
[Black "Markiewicz, Jerzy"]
[Result "1/2-1/2"]
[ECO "A85"]
[WhiteElo "2270"]
[BlackElo "2170"]
[Annotator "NA"]
[PlyCount "48"]
[EventDate "2019.07.06"]
[EventType "swiss"]
[EventCountry "POL"]
[SourceTitle "playchess.com"]
[Source "ChessBase"]
[SourceQuality "1"]
[TimeControl "40/5400+30:1800+30"]

1. d4 f5 2. c4 Nf6 3. Nc3 e6 4. e3 Bb4 5. Bd3 Bxc3+ 6. bxc3 O-O 7. Ne2 d6 8. Qc2 Qe7 9. O-O c5 10. Ng3 Nc6 11. dxc5 dxc5 12. e4 Ng4 13. exf5 Qh4 14. h3 Nge5 15. Be4 Nxc4 16. Qe2 Nd6 17. Bxc6 bxc6 18. fxe6 Re8 19. Qe5 Rxe6 20. Qxc5 Ba6 21. Qxc6 Bb7 22. Qd7 Rg6 23. Rb1 Bxg2 24. Rb4 Qxh3 1/2-1/2

[Event "XIX Najdorf Memorial 2019"]
[Site "Warsaw"]
[Date "2019.07.13"]
[Round "8.22"]
[White "Harazinska, Magdalena"]
[Black "Antolak, Julia"]
[Result "1/2-1/2"]
[ECO "D91"]
[WhiteElo "2004"]
[BlackElo "2258"]
[Annotator "NA"]
[PlyCount "84"]
[EventDate "2019.07.06"]
[EventType "swiss"]
[EventCountry "POL"]
[SourceTitle "playchess.com"]
[Source "ChessBase"]
[SourceQuality "1"]
[TimeControl "40/5400+30:1800+30"]

1. d4 Nf6 2. c4 g6 3. Nc3 d5 4. Nf3 Bg7 5. Bg5 Ne4 6. Bf4 Nxc3 7. bxc3 O-O 8. e3 c5 9. cxd5 cxd4 10. cxd4 Qxd5 11. Be2 Bd7 12. O-O Bc6 13. Qb3 Qxb3 14. axb3 Nd7 15. b4 a6 16. Rfc1 Rfc8 17. h3 Bf8 18. Rab1 b5 19. Nd2 e6 20. f3 Bb7 21. Bc7 Nb8 22. Ne4 Nc6 23. Bd6 Nxd4 24. exd4 Bxe4 25. fxe4 Bxd6 26. Rxc8+ Rxc8 27. Kf2 f5 28. exf5 gxf5 29. Ra1 Rc6 30. Bf3 Rc4 31. Rxa6 Rxd4 32. Be2 e5 33. Bxb5 Bxb4 34. Re6 Bd6 35. Bc6 Kf7 36. Rh6 Kg7 37. Re6 f4 38. Kf3 Bb8 39. Kg4 Rd2 40. Kf5 Bd6 41. Be4 Rd4 42. Bf3 Rd2 1/2-1/2